[Event "Titled Tuesday Blitz November 15 Late 2022"]
[White "Fernandez De La Vara, Arnaldo"]
[Black "Megalios, Konstantinos"]
[WhiteFideId "3518388"]
[BlackFideId "4238044"]
[WhiteElo "2387"]
[BlackElo "2277"]
[Result "1-0"]
[Round "09"]
[TimeControl "180+1"]
[Date "2022.11.15"]
[WhiteClock "0:00:03"]
[BlackClock "0:00:01"]

1. Nf3 {[%clk 0:03:00]}  Nf6 {[%clk 0:02:55]} 2. g3 {[%clk 0:03:01]}  d5 {[%clk 0:02:53]} 3. b3 {[%clk 0:03:01]}  Bg4 {[%clk 0:02:52]} 4. Bb2 {[%clk 0:03:01]}  Bxf3 {[%clk 0:02:47]} 5. exf3 {[%clk 0:03:02]}  g6 {[%clk 0:02:41]} 6. Bg2 {[%clk 0:03:03]}  Bg7 {[%clk 0:02:41]} 7. O-O {[%clk 0:03:03]}  O-O {[%clk 0:02:41]} 8. f4 {[%clk 0:03:04]}  e6 {[%clk 0:02:42]} 9. d4 {[%clk 0:03:04]}  c6 {[%clk 0:02:42]} 10. Nd2 {[%clk 0:03:05]}  Ne8 {[%clk 0:02:43]} 11. Nf3 {[%clk 0:03:05]}  Nd6 {[%clk 0:02:43]} 12. Ne5 {[%clk 0:03:06]}  a5 {[%clk 0:02:41]} 13. a4 {[%clk 0:03:03]}  Nd7 {[%clk 0:02:28]} 14. Qe2 {[%clk 0:03:03]}  Re8 {[%clk 0:02:27]} 15. Rfd1 {[%clk 0:03:02]}  Rc8 {[%clk 0:02:26]} 16. Rac1 {[%clk 0:03:01]}  Nf5 {[%clk 0:02:26]} 17. h4 {[%clk 0:02:41]}  h5 {[%clk 0:02:25]} 18. c4 {[%clk 0:02:19]}  Bf8 {[%clk 0:02:20]} 19. c5 {[%clk 0:01:46]}  Ra8 {[%clk 0:02:20]} 20. Rd3 {[%clk 0:01:27]}  Nxe5 {[%clk 0:02:02]} 21. fxe5 {[%clk 0:01:26]}  b6 {[%clk 0:02:01]} 22. Ba3 {[%clk 0:01:24]}  bxc5 {[%clk 0:01:53]} 23. Bxc5 {[%clk 0:01:25]}  Bxc5 {[%clk 0:01:53]} 24. Rxc5 {[%clk 0:01:26]}  Qb6 {[%clk 0:01:54]} 25. Qc2 {[%clk 0:01:25]}  Rec8 {[%clk 0:01:52]} 26. Bh3 {[%clk 0:01:25]}  Ne7 {[%clk 0:01:47]} 27. Rdc3 {[%clk 0:01:13]}  Qb4 {[%clk 0:01:45]} 28. Qd3 {[%clk 0:00:59]}  Rab8 {[%clk 0:01:43]} 29. Kg2 {[%clk 0:00:57]}  Rb6 {[%clk 0:01:37]} 30. g4 {[%clk 0:00:57]}  hxg4 {[%clk 0:01:32]} 31. Bxg4 {[%clk 0:00:57]}  Kg7 {[%clk 0:01:29]} 32. h5 {[%clk 0:00:55]}  Rh8 {[%clk 0:01:29]} 33. hxg6 {[%clk 0:00:23]}  Nxg6 {[%clk 0:01:27]} 34. Qe3 {[%clk 0:00:24]}  Rh4 {[%clk 0:01:07]} 35. f3 {[%clk 0:00:19]}  Qa3 {[%clk 0:01:04]} 36. Rxc6 {[%clk 0:00:09]}  Rxc6 {[%clk 0:01:01]} 37. Rxc6 {[%clk 0:00:10]}  Qb2+ {[%clk 0:01:00]} 38. Kg1 {[%clk 0:00:09]}  Qh2+ {[%clk 0:00:52]} 39. Kf1 {[%clk 0:00:09]}  Qg3 {[%clk 0:00:45]} 40. Qg1 {[%clk 0:00:07]}  Qf4 {[%clk 0:00:41]} 41. Rc2 {[%clk 0:00:04]}  Kh6 {[%clk 0:00:33]} 42. Ke1 {[%clk 0:00:02]}  Qg5 {[%clk 0:00:22]} 43. Kd1 {[%clk 0:00:02]}  Nf4 {[%clk 0:00:20]} 44. Rh2 {[%clk 0:00:02]}  Rxh2 {[%clk 0:00:15]} 45. Qxh2+ {[%clk 0:00:03]}  Kg7 {[%clk 0:00:15]} 46. Qd2 {[%clk 0:00:04]}  Qh6 {[%clk 0:00:14]} 47. Kc2 {[%clk 0:00:04]}  Qh7+ {[%clk 0:00:13]} 48. Kc3 {[%clk 0:00:04]}  Qh6 {[%clk 0:00:10]} 49. b4 {[%clk 0:00:04]}  axb4+ {[%clk 0:00:09]} 50. Kxb4 {[%clk 0:00:04]}  Qg5 {[%clk 0:00:04]} 51. a5 {[%clk 0:00:05]}  Qe7+ {[%clk 0:00:04]} 52. Kb3 {[%clk 0:00:03]}  Qb7+ {[%clk 0:00:03]} 53. Qb4 {[%clk 0:00:03]}  Qa6 {[%clk 0:00:03]} 54. Qb6 {[%clk 0:00:03]}  Qd3+ {[%clk 0:00:03]} 55. Ka4 {[%clk 0:00:03]}  Ne2 {[%clk 0:00:03]} 56. Qb4 {[%clk 0:00:02]}  Nc3+ {[%clk 0:00:03]} 57. Kb3 {[%clk 0:00:02]}  Nb5+ {[%clk 0:00:02]} 58. Kb2 {[%clk 0:00:03]}  Nxd4 {[%clk 0:00:02]} 59. Qc3 {[%clk 0:00:03]}  Qb5+ {[%clk 0:00:01]} 60. Ka2 {[%clk 0:00:03]}  Qa4+ {[%clk 0:00:01]} 61. Qa3 {[%clk 0:00:03]} 1-0


[Site "https://www.chess.com"]

[Event "Titled Tuesday Blitz November 15 Late 2022"]
[White "Fernandez Hernandez, Gerardo"]
[Black "Gerbelli Neto, Eduardo"]
[WhiteFideId "2207400"]
[BlackFideId "2103281"]
[WhiteElo "2246"]
[BlackElo "2178"]
[Result "1-0"]
[Round "09"]
[TimeControl "180+1"]
[Date "2022.11.16"]
[WhiteClock "0:00:11"]
[BlackClock "0:01:05"]

1. e4 {[%clk 0:02:58]}  e5 {[%clk 0:02:59]} 2. Nf3 {[%clk 0:02:57]}  Nc6 {[%clk 0:02:59]} 3. Bc4 {[%clk 0:02:58]}  Nf6 {[%clk 0:02:59]} 4. Ng5 {[%clk 0:02:58]}  d5 {[%clk 0:02:59]} 5. exd5 {[%clk 0:02:59]}  Nd4 {[%clk 0:03:00]} 6. c3 {[%clk 0:02:58]}  b5 {[%clk 0:03:00]} 7. Bf1 {[%clk 0:02:59]}  Nxd5 {[%clk 0:03:00]} 8. cxd4 {[%clk 0:02:58]}  Qxg5 {[%clk 0:03:00]} 9. Bxb5+ {[%clk 0:02:57]}  Kd8 {[%clk 0:03:00]} 10. Qf3 {[%clk 0:02:46]}  Bb7 {[%clk 0:02:56]} 11. O-O {[%clk 0:02:28]}  Rb8 {[%clk 0:02:55]} 12. d3 {[%clk 0:02:08]}  Nf4 {[%clk 0:02:50]} 13. Bxf4 {[%clk 0:02:02]}  exf4 {[%clk 0:02:46]} 14. Bc6 {[%clk 0:02:02]}  Bxc6 {[%clk 0:02:43]} 15. Qxc6 {[%clk 0:02:02]}  Rb6 {[%clk 0:02:30]} 16. Qa8+ {[%clk 0:01:47]}  Kd7 {[%clk 0:02:29]} 17. Nc3 {[%clk 0:01:29]}  Rg6 {[%clk 0:02:18]} 18. Qd5+ {[%clk 0:01:21]}  Bd6 {[%clk 0:02:18]} 19. Qxg5 {[%clk 0:01:20]}  Rxg5 {[%clk 0:02:18]} 20. Rfe1 {[%clk 0:01:06]}  Rb8 {[%clk 0:02:12]} 21. b3 {[%clk 0:00:57]}  Bb4 {[%clk 0:02:05]} 22. Rac1 {[%clk 0:00:46]}  Rb6 {[%clk 0:01:55]} 23. Re5 {[%clk 0:00:36]}  f6 {[%clk 0:01:45]} 24. Rd5+ {[%clk 0:00:28]}  Rd6 {[%clk 0:01:38]} 25. Rxd6+ {[%clk 0:00:24]}  Bxd6 {[%clk 0:01:39]} 26. Ne4 {[%clk 0:00:24]}  Rd5 {[%clk 0:01:38]} 27. Nxd6 {[%clk 0:00:22]}  Kxd6 {[%clk 0:01:38]} 28. Rc4 {[%clk 0:00:21]}  Ra5 {[%clk 0:01:37]} 29. a4 {[%clk 0:00:20]}  Ra6 {[%clk 0:01:37]} 30. Kf1 {[%clk 0:00:18]}  Rb6 {[%clk 0:01:38]} 31. b4 {[%clk 0:00:18]}  g5 {[%clk 0:01:32]} 32. Ke2 {[%clk 0:00:18]}  c6 {[%clk 0:01:28]} 33. Kf3 {[%clk 0:00:17]}  h5 {[%clk 0:01:29]} 34. Ke4 {[%clk 0:00:16]}  Ke6 {[%clk 0:01:25]} 35. a5 {[%clk 0:00:16]}  f5+ {[%clk 0:01:25]} 36. Kf3 {[%clk 0:00:15]}  Ra6 {[%clk 0:01:25]} 37. Rc5 {[%clk 0:00:13]}  Kf6 {[%clk 0:01:20]} 38. h4 {[%clk 0:00:12]}  Kg6 {[%clk 0:01:17]} 39. hxg5 {[%clk 0:00:12]}  Kxg5 {[%clk 0:01:18]} 40. g3 {[%clk 0:00:11]}  fxg3 {[%clk 0:01:18]} 41. fxg3 {[%clk 0:00:11]}  Kg6 {[%clk 0:01:10]} 42. Kf4 {[%clk 0:00:11]}  h4 {[%clk 0:01:05]} 43. gxh4 {[%clk 0:00:11]}  Kh5 {[%clk 0:01:05]} 44. Kxf5 {[%clk 0:00:11]}  Kxh4 {[%clk 0:01:06]} 45. Ke5 {[%clk 0:00:11]}  Kg4 {[%clk 0:01:06]} 46. Kd6 {[%clk 0:00:11]}  Kf4 {[%clk 0:01:06]} 47. Kc7 {[%clk 0:00:11]}  Ke3 {[%clk 0:01:05]} 48. Kb7 {[%clk 0:00:11]} 1-0


[Site "https://www.chess.com"]

[Event "Titled Tuesday Blitz November 15 Late 2022"]
[White "Forgacs, Attila Jr."]
[Black "Kopylov, Alexander A."]
[WhiteFideId "773654"]
[BlackFideId "4164857"]
[WhiteElo "2168"]
[BlackElo "2436"]
[Result "0-1"]
[Round "09"]
[TimeControl "180+1"]
[Date "2022.11.16"]
[WhiteClock "0:00:01"]
[BlackClock "0:00:39"]

1. e4 {[%clk 0:03:00]}  c6 {[%clk 0:03:00]} 2. d4 {[%clk 0:02:56]}  d5 {[%clk 0:03:00]} 3. Nc3 {[%clk 0:02:57]}  dxe4 {[%clk 0:03:00]} 4. Nxe4 {[%clk 0:02:58]}  Nf6 {[%clk 0:03:00]} 5. Nxf6+ {[%clk 0:02:58]}  exf6 {[%clk 0:03:01]} 6. c3 {[%clk 0:02:58]}  Bd6 {[%clk 0:03:01]} 7. Bd3 {[%clk 0:02:59]}  O-O {[%clk 0:03:02]} 8. Qc2 {[%clk 0:02:59]}  Re8+ {[%clk 0:03:02]} 9. Ne2 {[%clk 0:02:58]}  h6 {[%clk 0:03:02]} 10. Be3 {[%clk 0:02:57]}  Nd7 {[%clk 0:03:02]} 11. O-O-O {[%clk 0:02:57]}  b5 {[%clk 0:03:02]} 12. h4 {[%clk 0:02:54]}  Nb6 {[%clk 0:03:02]} 13. Rhg1 {[%clk 0:02:47]}  Be6 {[%clk 0:03:01]} 14. Kb1 {[%clk 0:02:45]}  a5 {[%clk 0:02:47]} 15. g4 {[%clk 0:02:45]}  Bh2 {[%clk 0:02:38]} 16. Rg2 {[%clk 0:02:38]}  Bxa2+ {[%clk 0:02:29]} 17. Kc1 {[%clk 0:02:15]}  Bc7 {[%clk 0:02:26]} 18. g5 {[%clk 0:02:14]}  fxg5 {[%clk 0:02:20]} 19. hxg5 {[%clk 0:02:14]}  h5 {[%clk 0:02:20]} 20. g6 {[%clk 0:02:00]}  f6 {[%clk 0:02:17]} 21. Nf4 {[%clk 0:01:31]}  Bxf4 {[%clk 0:02:13]} 22. Bxf4 {[%clk 0:01:32]}  Qd5 {[%clk 0:02:09]} 23. Rh2 {[%clk 0:01:22]}  Bb3 {[%clk 0:02:08]} 24. Qd2 {[%clk 0:01:22]}  Bxd1 {[%clk 0:02:08]} 25. Qxd1 {[%clk 0:01:22]}  Nc4 {[%clk 0:01:58]} 26. Rxh5 {[%clk 0:01:19]}  Re1 {[%clk 0:01:57]} 27. Qxe1 {[%clk 0:01:12]}  Qxh5 {[%clk 0:01:56]} 28. Bxc4+ {[%clk 0:00:55]}  bxc4 {[%clk 0:01:55]} 29. Qe6+ {[%clk 0:00:56]}  Kh8 {[%clk 0:01:56]} 30. Qxc6 {[%clk 0:00:56]}  Rg8 {[%clk 0:01:50]} 31. Qe4 {[%clk 0:00:44]}  Rd8 {[%clk 0:01:49]} 32. Kc2 {[%clk 0:00:29]}  Qd5 {[%clk 0:01:33]} 33. Qe7 {[%clk 0:00:16]}  Qf5+ {[%clk 0:01:31]} 34. Kd1 {[%clk 0:00:14]}  Rg8 {[%clk 0:01:29]} 35. Qe3 {[%clk 0:00:11]}  Qxg6 {[%clk 0:01:25]} 36. d5 {[%clk 0:00:09]}  Qb1+ {[%clk 0:01:07]} 37. Ke2 {[%clk 0:00:09]}  Qxb2+ {[%clk 0:01:08]} 38. Kf3 {[%clk 0:00:09]}  Qb1 {[%clk 0:00:59]} 39. d6 {[%clk 0:00:08]}  a4 {[%clk 0:00:49]} 40. d7 {[%clk 0:00:06]}  a3 {[%clk 0:00:42]} 41. Kg2 {[%clk 0:00:05]}  Qg6+ {[%clk 0:00:41]} 42. Bg3 {[%clk 0:00:02]}  a2 {[%clk 0:00:40]} 43. Qe8 {[%clk 0:00:01]}  Rxe8 {[%clk 0:00:39]} 0-1


[Site "https://www.chess.com"]

[Event "Titled Tuesday Blitz November 15 Late 2022"]
[White "Gardezi, Arsal"]
[Black "Kujawski, Adam"]
[WhiteFideId "30949521"]
[BlackFideId "1100920"]
[WhiteElo "1906"]
[BlackElo "2053"]
[Result "0-1"]
[Round "09"]
[TimeControl "180+1"]
[Date "2022.11.16"]
[WhiteClock "0:01:39"]
[BlackClock "0:01:15"]

1. Nf3 {[%clk 0:03:00]}  d5 {[%clk 0:02:59]} 2. g3 {[%clk 0:03:01]}  Nc6 {[%clk 0:02:58]} 3. Bg2 {[%clk 0:03:02]}  e5 {[%clk 0:02:58]} 4. d3 {[%clk 0:03:01]}  h6 {[%clk 0:02:58]} 5. Nbd2 {[%clk 0:03:00]}  Nf6 {[%clk 0:02:58]} 6. O-O {[%clk 0:03:00]}  Be7 {[%clk 0:02:56]} 7. e4 {[%clk 0:02:59]}  dxe4 {[%clk 0:02:54]} 8. dxe4 {[%clk 0:03:00]}  Be6 {[%clk 0:02:53]} 9. c3 {[%clk 0:02:59]}  Qd3 {[%clk 0:02:52]} 10. Re1 {[%clk 0:02:59]}  O-O-O {[%clk 0:02:50]} 11. Bf1 {[%clk 0:02:49]}  Qd7 {[%clk 0:02:46]} 12. b4 {[%clk 0:02:49]}  Bg4 {[%clk 0:02:30]} 13. b5 {[%clk 0:02:37]}  Na5 {[%clk 0:02:22]} 14. Qa4 {[%clk 0:02:34]}  b6 {[%clk 0:02:12]} 15. Nxe5 {[%clk 0:02:29]}  Qe6 {[%clk 0:02:11]} 16. Nc6 {[%clk 0:02:25]}  Bc5 {[%clk 0:02:05]} 17. Nxa5 {[%clk 0:02:13]}  bxa5 {[%clk 0:02:03]} 18. Qxa5 {[%clk 0:02:12]}  Qb6 {[%clk 0:01:29]} 19. Qa4 {[%clk 0:02:02]}  Bxf2+ {[%clk 0:01:27]} 20. Kg2 {[%clk 0:02:01]}  Bxe1 {[%clk 0:01:23]} 21. Qa6+ {[%clk 0:01:37]}  Qxa6 {[%clk 0:01:22]} 22. bxa6 {[%clk 0:01:38]}  Bxd2 {[%clk 0:01:21]} 23. Bxd2 {[%clk 0:01:39]}  Rxd2+ {[%clk 0:01:21]} 24. Kg1 {[%clk 0:01:39]}  Rd1 {[%clk 0:01:15]} 0-1


[Site "https://www.chess.com"]

[Event "Titled Tuesday Blitz November 15 Late 2022"]
[White "He, Samuel"]
[Black "Kaplan, Avi Harrison"]
[WhiteFideId "2087235"]
[BlackFideId "30934559"]
[WhiteElo "2605"]
[BlackElo "1983"]
[Result "1-0"]
[Round "09"]
[TimeControl "180+1"]
[Date "2022.11.16"]
[WhiteClock "0:00:26"]
[BlackClock "0:00:01"]

1. d4 {[%clk 0:02:56]}  Nf6 {[%clk 0:02:58]} 2. Nf3 {[%clk 0:02:54]}  c5 {[%clk 0:02:50]} 3. d5 {[%clk 0:02:53]}  b5 {[%clk 0:02:50]} 4. c3 {[%clk 0:02:53]}  g6 {[%clk 0:02:44]} 5. e4 {[%clk 0:02:51]}  Nxe4 {[%clk 0:02:40]} 6. Bxb5 {[%clk 0:02:51]}  Bg7 {[%clk 0:02:39]} 7. O-O {[%clk 0:02:51]}  O-O {[%clk 0:02:39]} 8. Re1 {[%clk 0:02:50]}  Nf6 {[%clk 0:02:39]} 9. c4 {[%clk 0:02:49]}  d6 {[%clk 0:02:38]} 10. Nc3 {[%clk 0:02:50]}  Nbd7 {[%clk 0:02:32]} 11. Qe2 {[%clk 0:02:32]}  Re8 {[%clk 0:02:02]} 12. Bf4 {[%clk 0:02:26]}  a6 {[%clk 0:01:38]} 13. Ba4 {[%clk 0:02:19]}  e6 {[%clk 0:01:34]} 14. Bxd6 {[%clk 0:01:56]}  exd5 {[%clk 0:01:31]} 15. Qd3 {[%clk 0:01:48]}  dxc4 {[%clk 0:01:14]} 16. Qxc4 {[%clk 0:01:46]}  Nb6 {[%clk 0:01:13]} 17. Qxc5 {[%clk 0:01:37]}  Nxa4 {[%clk 0:01:10]} 18. Nxa4 {[%clk 0:01:31]}  Ne4 {[%clk 0:01:09]} 19. Qd5 {[%clk 0:01:10]}  Qxd6 {[%clk 0:00:37]} 20. Qxa8 {[%clk 0:01:04]}  Bd7 {[%clk 0:00:37]} 21. Qb7 {[%clk 0:00:44]}  Bxa4 {[%clk 0:00:18]} 22. Rxe4 {[%clk 0:00:43]}  Rxe4 {[%clk 0:00:17]} 23. Qxe4 {[%clk 0:00:44]}  Bc6 {[%clk 0:00:17]} 24. Qe2 {[%clk 0:00:41]}  h6 {[%clk 0:00:13]} 25. Rd1 {[%clk 0:00:40]}  Qf6 {[%clk 0:00:13]} 26. b3 {[%clk 0:00:39]}  a5 {[%clk 0:00:12]} 27. Qe3 {[%clk 0:00:36]}  a4 {[%clk 0:00:11]} 28. h3 {[%clk 0:00:35]}  axb3 {[%clk 0:00:10]} 29. axb3 {[%clk 0:00:35]}  Kh7 {[%clk 0:00:11]} 30. Nd4 {[%clk 0:00:33]}  Bb7 {[%clk 0:00:10]} 31. f4 {[%clk 0:00:31]}  Qb6 {[%clk 0:00:09]} 32. Kh2 {[%clk 0:00:30]}  Qc7 {[%clk 0:00:05]} 33. Nf3 {[%clk 0:00:27]}  Bf8 {[%clk 0:00:03]} 34. Ne5 {[%clk 0:00:26]}  Bg7 {[%clk 0:00:03]} 35. Rd7 {[%clk 0:00:25]}  Qc6 {[%clk 0:00:01]} 36. Nxc6 {[%clk 0:00:25]}  Bxc6 {[%clk 0:00:01]} 37. Rxf7 {[%clk 0:00:25]}  Bd5 {[%clk 0:00:02]} 38. Rxg7+ {[%clk 0:00:25]}  Kxg7 {[%clk 0:00:03]} 39. Qe5+ {[%clk 0:00:25]}  Kh7 {[%clk 0:00:04]} 40. Qxd5 {[%clk 0:00:26]}  h5 {[%clk 0:00:05]} 41. f5 {[%clk 0:00:26]}  h4 {[%clk 0:00:05]} 42. f6 {[%clk 0:00:26]}  Kh6 {[%clk 0:00:02]} 43. f7 {[%clk 0:00:26]}  g5 {[%clk 0:00:01]} 44. f8=Q+ {[%clk 0:00:26]}  Kh7 {[%clk 0:00:01]} 45. Qdf7# {[%clk 0:00:26]} 1-0


[Site "https://www.chess.com"]

[Event "Titled Tuesday Blitz November 15 Late 2022"]
[White "Ibarra Jerez, Jose Carlos"]
[Black "Fedoseev, Vladimir"]
[WhiteFideId "2226332"]
[BlackFideId "24130737"]
[WhiteElo "2638"]
[BlackElo "2726"]
[Result "0-1"]
[Round "09"]
[TimeControl "180+1"]
[Date "2022.11.15"]
[WhiteClock "0:00:01"]
[BlackClock "0:00:04"]

1. e4 {[%clk 0:03:00]}  c6 {[%clk 0:02:59]} 2. Nf3 {[%clk 0:03:00]}  d5 {[%clk 0:02:58]} 3. d3 {[%clk 0:03:01]}  Qc7 {[%clk 0:02:57]} 4. exd5 {[%clk 0:02:59]}  cxd5 {[%clk 0:02:57]} 5. c4 {[%clk 0:03:00]}  Nf6 {[%clk 0:02:57]} 6. Nc3 {[%clk 0:03:01]}  dxc4 {[%clk 0:02:47]} 7. dxc4 {[%clk 0:03:01]}  a6 {[%clk 0:02:38]} 8. g3 {[%clk 0:03:01]}  Bg4 {[%clk 0:02:30]} 9. h3 {[%clk 0:02:56]}  Bxf3 {[%clk 0:02:27]} 10. Qxf3 {[%clk 0:02:55]}  e6 {[%clk 0:02:25]} 11. Bg2 {[%clk 0:02:54]}  Nc6 {[%clk 0:02:25]} 12. O-O {[%clk 0:02:52]}  Bd6 {[%clk 0:02:22]} 13. b3 {[%clk 0:02:45]}  O-O {[%clk 0:02:19]} 14. Bb2 {[%clk 0:02:26]}  Be5 {[%clk 0:02:19]} 15. Rad1 {[%clk 0:02:19]}  Rfd8 {[%clk 0:02:15]} 16. Rfe1 {[%clk 0:02:18]}  Qa5 {[%clk 0:02:01]} 17. a3 {[%clk 0:02:05]}  Qc7 {[%clk 0:02:00]} 18. b4 {[%clk 0:01:55]}  h6 {[%clk 0:01:47]} 19. c5 {[%clk 0:01:40]}  Rab8 {[%clk 0:01:33]} 20. Rxd8+ {[%clk 0:01:33]}  Rxd8 {[%clk 0:01:32]} 21. Rd1 {[%clk 0:01:33]}  Bd4 {[%clk 0:01:25]} 22. Qe2 {[%clk 0:01:21]}  e5 {[%clk 0:01:08]} 23. Qc4 {[%clk 0:01:10]}  e4 {[%clk 0:01:00]} 24. Qe2 {[%clk 0:00:46]}  Qe5 {[%clk 0:00:39]} 25. Na4 {[%clk 0:00:26]}  h5 {[%clk 0:00:31]} 26. Kf1 {[%clk 0:00:25]}  Qe8 {[%clk 0:00:23]} 27. Bc1 {[%clk 0:00:19]}  Ne5 {[%clk 0:00:20]} 28. Nb2 {[%clk 0:00:18]}  Bc3 {[%clk 0:00:13]} 29. Rxd8 {[%clk 0:00:17]}  Qxd8 {[%clk 0:00:13]} 30. Bxe4 {[%clk 0:00:16]}  Qd7 {[%clk 0:00:09]} 31. Kg2 {[%clk 0:00:15]}  a5 {[%clk 0:00:06]} 32. b5 {[%clk 0:00:14]}  Nxe4 {[%clk 0:00:06]} 33. Qxe4 {[%clk 0:00:13]}  Qxb5 {[%clk 0:00:07]} 34. Nd1 {[%clk 0:00:08]}  Ba1 {[%clk 0:00:07]} 35. Be3 {[%clk 0:00:06]}  Qc6 {[%clk 0:00:06]} 36. Qxc6 {[%clk 0:00:05]}  Nxc6 {[%clk 0:00:07]} 37. f4 {[%clk 0:00:05]}  Kf8 {[%clk 0:00:08]} 38. Kf3 {[%clk 0:00:05]}  f5 {[%clk 0:00:07]} 39. g4 {[%clk 0:00:05]}  hxg4+ {[%clk 0:00:06]} 40. hxg4 {[%clk 0:00:06]}  g6 {[%clk 0:00:06]} 41. gxf5 {[%clk 0:00:06]}  gxf5 {[%clk 0:00:06]} 42. Ke2 {[%clk 0:00:06]}  Kf7 {[%clk 0:00:07]} 43. Kd3 {[%clk 0:00:07]}  Ke6 {[%clk 0:00:07]} 44. Kc4 {[%clk 0:00:07]}  Ne7 {[%clk 0:00:06]} 45. Nf2 {[%clk 0:00:03]}  Nd5 {[%clk 0:00:06]} 46. Bd2 {[%clk 0:00:04]}  Bb2 {[%clk 0:00:05]} 47. Nd3 {[%clk 0:00:03]}  Bxa3 {[%clk 0:00:05]} 48. Bxa5 {[%clk 0:00:04]}  Ne3+ {[%clk 0:00:03]} 49. Kb5 {[%clk 0:00:03]}  Kd5 {[%clk 0:00:03]} 50. Bd2 {[%clk 0:00:02]}  Nc4 {[%clk 0:00:03]} 51. Bc1 {[%clk 0:00:01]}  Bxc1 {[%clk 0:00:03]} 52. Nxc1 {[%clk 0:00:02]}  Na3+ {[%clk 0:00:03]} 53. Kb6 {[%clk 0:00:01]}  Nc4+ {[%clk 0:00:04]} 0-1


[Site "https://www.chess.com"]

[Event "Titled Tuesday Blitz November 15 Late 2022"]
[White "Kleiman, Jake"]
[Black "Sarkar, Justin"]
[WhiteFideId "2020041"]
[BlackFideId "2010011"]
[WhiteElo "2578"]
[BlackElo "2239"]
[Result "1/2-1/2"]
[Round "09"]
[TimeControl "180+1"]
[Date "2022.11.16"]
[WhiteClock "0:00:05"]
[BlackClock "0:00:04"]

1. e4 {[%clk 0:03:00]}  c5 {[%clk 0:02:53]} 2. Nf3 {[%clk 0:03:01]}  e6 {[%clk 0:02:51]} 3. c3 {[%clk 0:03:01]}  d5 {[%clk 0:02:42]} 4. exd5 {[%clk 0:03:02]}  Qxd5 {[%clk 0:02:41]} 5. d4 {[%clk 0:03:02]}  Nf6 {[%clk 0:02:38]} 6. Na3 {[%clk 0:03:02]}  Nc6 {[%clk 0:02:28]} 7. Be3 {[%clk 0:03:01]}  cxd4 {[%clk 0:02:23]} 8. Nb5 {[%clk 0:03:01]}  Qd8 {[%clk 0:02:13]} 9. Nbxd4 {[%clk 0:03:01]}  Bd7 {[%clk 0:02:09]} 10. Bd3 {[%clk 0:03:01]}  Be7 {[%clk 0:02:05]} 11. O-O {[%clk 0:03:02]}  O-O {[%clk 0:02:05]} 12. Qe2 {[%clk 0:03:02]}  a6 {[%clk 0:01:58]} 13. Rad1 {[%clk 0:03:02]}  Qc7 {[%clk 0:01:55]} 14. Rfe1 {[%clk 0:03:01]}  Rad8 {[%clk 0:01:42]} 15. h3 {[%clk 0:02:58]}  Nd5 {[%clk 0:01:39]} 16. Bc1 {[%clk 0:02:35]}  Nf4 {[%clk 0:01:27]} 17. Bxf4 {[%clk 0:02:21]}  Qxf4 {[%clk 0:01:27]} 18. g3 {[%clk 0:02:14]}  Qh6 {[%clk 0:01:19]} 19. h4 {[%clk 0:02:12]}  Nxd4 {[%clk 0:01:14]} 20. Nxd4 {[%clk 0:02:10]}  Bc5 {[%clk 0:01:09]} 21. Be4 {[%clk 0:02:03]}  Bc8 {[%clk 0:00:58]} 22. Nf3 {[%clk 0:01:54]}  Qf6 {[%clk 0:00:40]} 23. Ng5 {[%clk 0:01:28]}  g6 {[%clk 0:00:37]} 24. Nxh7 {[%clk 0:01:03]}  Qxf2+ {[%clk 0:00:24]} 25. Qxf2 {[%clk 0:01:03]}  Bxf2+ {[%clk 0:00:23]} 26. Kxf2 {[%clk 0:01:04]}  Kxh7 {[%clk 0:00:21]} 27. Ke3 {[%clk 0:00:56]}  Kg7 {[%clk 0:00:20]} 28. c4 {[%clk 0:00:55]}  f5 {[%clk 0:00:20]} 29. Bg2 {[%clk 0:00:51]}  Kf6 {[%clk 0:00:19]} 30. b4 {[%clk 0:00:49]}  e5 {[%clk 0:00:18]} 31. Bd5 {[%clk 0:00:44]}  g5 {[%clk 0:00:17]} 32. hxg5+ {[%clk 0:00:44]}  Kxg5 {[%clk 0:00:17]} 33. Rh1 {[%clk 0:00:44]}  Rh8 {[%clk 0:00:16]} 34. Rdg1 {[%clk 0:00:41]}  Kf6 {[%clk 0:00:15]} 35. a3 {[%clk 0:00:40]}  b6 {[%clk 0:00:15]} 36. Rf1 {[%clk 0:00:33]}  Be6 {[%clk 0:00:13]} 37. Bxe6 {[%clk 0:00:20]}  Kxe6 {[%clk 0:00:13]} 38. Rc1 {[%clk 0:00:19]}  Rc8 {[%clk 0:00:11]} 39. Rxh8 {[%clk 0:00:17]}  Rxh8 {[%clk 0:00:11]} 40. c5 {[%clk 0:00:17]}  bxc5 {[%clk 0:00:07]} 41. Rxc5 {[%clk 0:00:18]}  Rd8 {[%clk 0:00:06]} 42. Ra5 {[%clk 0:00:15]}  Rd6 {[%clk 0:00:06]} 43. Rc5 {[%clk 0:00:15]}  Rd5 {[%clk 0:00:05]} 44. Rc8 {[%clk 0:00:13]}  a5 {[%clk 0:00:04]} 45. Rc6+ {[%clk 0:00:09]}  Kd7 {[%clk 0:00:04]} 46. Rb6 {[%clk 0:00:08]}  axb4 {[%clk 0:00:04]} 47. axb4 {[%clk 0:00:08]}  Rd4 {[%clk 0:00:04]} 48. Rb5 {[%clk 0:00:06]}  Kd6 {[%clk 0:00:03]} 49. Rb8 {[%clk 0:00:06]}  Rg4 {[%clk 0:00:03]} 50. Kf3 {[%clk 0:00:05]}  e4+ {[%clk 0:00:03]} 51. Kf2 {[%clk 0:00:05]}  f4 {[%clk 0:00:03]} 52. gxf4 {[%clk 0:00:04]}  Rxf4+ {[%clk 0:00:03]} 53. Ke3 {[%clk 0:00:05]}  Rf1 {[%clk 0:00:03]} 54. Kd4 {[%clk 0:00:04]}  Rd1+ {[%clk 0:00:02]} 55. Kxe4 {[%clk 0:00:04]}  Kc6 {[%clk 0:00:02]} 56. Ke3 {[%clk 0:00:04]}  Rb1 {[%clk 0:00:02]} 57. Kd4 {[%clk 0:00:04]}  Kc7 {[%clk 0:00:02]} 58. Rb5 {[%clk 0:00:05]}  Kc6 {[%clk 0:00:03]} 59. Rc5+ {[%clk 0:00:05]}  Kb6 {[%clk 0:00:03]} 60. Rc4 {[%clk 0:00:04]}  Kb5 {[%clk 0:00:03]} 61. Rc8 {[%clk 0:00:04]}  Rxb4+ {[%clk 0:00:03]} 62. Kd5 {[%clk 0:00:04]}  Rh4 {[%clk 0:00:03]} 63. Rb8+ {[%clk 0:00:05]}  Ka4 {[%clk 0:00:04]} 64. Kc5 {[%clk 0:00:04]}  Rh5+ {[%clk 0:00:03]} 65. Kc4 {[%clk 0:00:05]}  Rh4+ {[%clk 0:00:03]} 66. Kc3 {[%clk 0:00:05]}  Rh3+ {[%clk 0:00:04]} 67. Kc4 {[%clk 0:00:05]} 1/2-1/2


[Site "https://www.chess.com"]